[Event "Live Chess"]
[Site "Chess.com"]
[Date "2024.06.02"]
[Round "-"]
[White "MagnersCarlsberg2870"]
[Black "LL220284LL"]
[Result "0-1"]
[WhiteElo "1782"]
[BlackElo "2467"]
[TimeControl "300"]
[EndTime "7:17:17 PDT"]
[Termination "LL220284LL won by resignation"]

1. d4 {[%clk 0:04:57]} 1... g6 {[%clk 0:04:56.6]} 2. e4 {[%clk 0:04:55.5]} 2...
Bg7 {[%clk 0:04:55.2]} 3. Nf3 {[%clk 0:04:54.4]} 3... d6 {[%clk 0:04:54]} 4. h3
{[%clk 0:04:53.3]} 4... c6 {[%clk 0:04:51.9]} 5. a4 {[%clk 0:04:51.1]} 5... a5
{[%clk 0:04:50.5]} 6. Nc3 {[%clk 0:04:49.4]} 6... Nf6 {[%clk 0:04:49.2]} 7. Bc4
{[%clk 0:04:48.3]} 7... d5 {[%clk 0:04:47.1]} 8. exd5 {[%clk 0:04:46.1]} 8...
cxd5 {[%clk 0:04:46.5]} 9. Bb5+ {[%clk 0:04:45.3]} 9... Nc6 {[%clk 0:04:45.1]}
10. Ne5 {[%clk 0:04:44.1]} 10... Bd7 {[%clk 0:04:43.7]} 11. Nxd7 {[%clk
0:04:43]} 11... Qxd7 {[%clk 0:04:41.7]} 12. O-O {[%clk 0:04:40.1]} 12... O-O
{[%clk 0:04:41.2]} 13. Re1 {[%clk 0:04:38.9]} 13... Qd6 {[%clk 0:04:39]} 14. g3
{[%clk 0:04:31.3]} 14... Rfd8 {[%clk 0:04:36.9]} 15. Bf4 {[%clk 0:04:30]} 15...
Qb4 {[%clk 0:04:27.3]} 16. Bxc6 {[%clk 0:04:25.8]} 16... bxc6 {[%clk 0:04:24.3]}
17. Ra3 {[%clk 0:04:19.1]} 17... Nh5 {[%clk 0:04:03.5]} 18. Rb3 {[%clk
0:04:16.8]} 18... Qc4 {[%clk 0:04:00.4]} 19. Rxe7 {[%clk 0:04:09.4]} 19... Nxf4
{[%clk 0:03:58.1]} 20. gxf4 {[%clk 0:04:04.9]} 20... Bxd4 {[%clk 0:03:52.4]} 21.
Qg4 {[%clk 0:03:53.8]} 21... Bc5 {[%clk 0:03:43.1]} 22. Rc7 {[%clk 0:03:43.7]}
22... Bd6 {[%clk 0:03:39.3]} 23. Rxf7 {[%clk 0:03:35.7]} 23... Kxf7 {[%clk
0:03:36.1]} 24. Rb7+ {[%clk 0:03:34.7]} 24... Be7 {[%clk 0:03:32.2]} 25. f5
{[%clk 0:03:25.5]} 25... Qxg4+ {[%clk 0:03:30.7]} 0-1

[Event "Live Chess"]
[Site "Chess.com"]
[Date "2024.06.02"]
[Round "-"]
[White "Plimsol"]
[Black "Queensandpawns"]
[Result "1-0"]
[WhiteElo "2367"]
[BlackElo "2281"]
[TimeControl "300"]
[EndTime "7:17:25 PDT"]
[Termination "Plimsol won by resignation"]

1. e4 {[%clk 0:04:56.6]} 1... e5 {[%clk 0:04:58.9]} 2. Nf3 {[%clk 0:04:55.5]}
2... Nf6 {[%clk 0:04:58.8]} 3. d4 {[%clk 0:04:53.9]} 3... Nc6 {[%clk 0:04:58.7]}
4. dxe5 {[%clk 0:04:47.7]} 4... Nxe4 {[%clk 0:04:55]} 5. Nbd2 {[%clk 0:04:41.8]}
5... Nxd2 {[%clk 0:04:49.9]} 6. Qxd2 {[%clk 0:04:35.4]} 6... Bc5 {[%clk
0:04:49.8]} 7. Bd3 {[%clk 0:04:21.7]} 7... h6 {[%clk 0:04:46.9]} 8. O-O {[%clk
0:04:17]} 8... O-O {[%clk 0:04:44.2]} 9. Qf4 {[%clk 0:04:15.3]} 9... d5 {[%clk
0:04:40.7]} 10. Qg3 {[%clk 0:04:07.3]} 10... Be6 {[%clk 0:04:35.6]} 11. Bxh6
{[%clk 0:04:01.2]} 1-0

[Event "Live Chess"]
[Site "Chess.com"]
[Date "2024.06.02"]
[Round "-"]
[White "Dashman93"]
[Black "JohanKjeldahl"]
[Result "1-0"]
[WhiteElo "2148"]
[BlackElo "1795"]
[TimeControl "300"]
[EndTime "7:17:27 PDT"]
[Termination "Dashman93 won by resignation"]

1. d4 {[%clk 0:04:57.4]} 1... Nf6 {[%clk 0:04:58.5]} 2. Bf4 {[%clk 0:04:56.8]}
2... d6 {[%clk 0:04:57.1]} 3. e3 {[%clk 0:04:56.1]} 3... g6 {[%clk 0:04:54.8]}
4. h3 {[%clk 0:04:55.4]} 4... Bg7 {[%clk 0:04:53.8]} 5. c4 {[%clk 0:04:54.8]}
5... O-O {[%clk 0:04:52.7]} 6. Nc3 {[%clk 0:04:54.4]} 6... Nbd7 {[%clk
0:04:51.4]} 7. Nf3 {[%clk 0:04:53.9]} 7... c5 {[%clk 0:04:50.5]} 8. Be2 {[%clk
0:04:52.8]} 8... a6 {[%clk 0:04:49.5]} 9. O-O {[%clk 0:04:52.1]} 9... b6 {[%clk
0:04:42.8]} 10. a3 {[%clk 0:04:49.5]} 10... Bb7 {[%clk 0:04:41.8]} 11. b4 {[%clk
0:04:48.6]} 11... cxb4 {[%clk 0:04:38.8]} 12. axb4 {[%clk 0:04:48.5]} 12... Nh5
{[%clk 0:04:32.6]} 13. Bh2 {[%clk 0:04:47.1]} 13... e5 {[%clk 0:04:29.3]} 14. d5
{[%clk 0:04:44.8]} 14... f5 {[%clk 0:04:26.2]} 15. c5 {[%clk 0:04:27.5]} 15...
bxc5 {[%clk 0:04:21.3]} 16. bxc5 {[%clk 0:04:26.6]} 16... Nxc5 {[%clk
0:04:19.6]} 17. Rb1 {[%clk 0:04:21.1]} 17... Qd7 {[%clk 0:04:15]} 18. Ng5 {[%clk
0:04:18.6]} 18... e4 {[%clk 0:04:08.7]} 19. Bxh5 {[%clk 0:04:14.3]} 19... Bxc3
{[%clk 0:04:04.4]} 20. Be2 {[%clk 0:04:10.5]} 20... Rfb8 {[%clk 0:03:51.5]} 21.
Bc4 {[%clk 0:04:06.2]} 21... Bc8 {[%clk 0:03:27.3]} 22. Ne6 {[%clk 0:04:02.9]}
22... Qe7 {[%clk 0:03:06.7]} 23. Rxb8 {[%clk 0:04:01.7]} 23... Rxb8 {[%clk
0:03:04.5]} 24. Nxc5 {[%clk 0:04:00.6]} 1-0

[Event "Live Chess"]
[Site "Chess.com"]
[Date "2024.06.02"]
[Round "-"]
[White "davigator"]
[Black "Kyrylo7770"]
[Result "1-0"]
[WhiteElo "2354"]
[BlackElo "1641"]
[TimeControl "300"]
[EndTime "7:17:30 PDT"]
[Termination "davigator won by resignation"]

1. e4 {[%clk 0:04:57.1]} 1... c6 {[%clk 0:04:59.1]} 2. d4 {[%clk 0:04:55.6]}
2... d5 {[%clk 0:04:58.8]} 3. e5 {[%clk 0:04:51.2]} 3... Bf5 {[%clk 0:04:57.3]}
4. Nf3 {[%clk 0:04:42.2]} 4... c5 {[%clk 0:04:56.4]} 5. Be2 {[%clk 0:04:39.4]}
5... e6 {[%clk 0:04:55.4]} 6. O-O {[%clk 0:04:38.3]} 6... Nc6 {[%clk 0:04:50.8]}
7. Be3 {[%clk 0:04:37]} 7... c4 {[%clk 0:04:49.4]} 8. b3 {[%clk 0:04:33]} 8...
cxb3 {[%clk 0:04:47.4]} 9. axb3 {[%clk 0:04:31.3]} 9... Nb4 {[%clk 0:04:46.4]}
10. Ne1 {[%clk 0:04:26.3]} 10... Be7 {[%clk 0:04:43.2]} 11. c3 {[%clk
0:04:24.6]} 11... Nc6 {[%clk 0:04:41]} 12. b4 {[%clk 0:04:15]} 12... Bg5 {[%clk
0:04:39.8]} 13. Nd2 {[%clk 0:04:13]} 13... Bxe3 {[%clk 0:04:38.7]} 14. fxe3
{[%clk 0:04:12.1]} 14... Qg5 {[%clk 0:04:37.8]} 15. Rf3 {[%clk 0:04:09]} 15...
Nh6 {[%clk 0:04:32.6]} 16. Rg3 {[%clk 0:04:07.3]} 16... Qe7 {[%clk 0:04:13.8]}
17. Nb3 {[%clk 0:04:06.2]} 17... Bg6 {[%clk 0:04:03.9]} 18. Nc5 {[%clk
0:04:04.3]} 18... Nf5 {[%clk 0:04:01.1]} 19. Rh3 {[%clk 0:04:00.4]} 19... Qg5
{[%clk 0:03:57.8]} 20. Qd2 {[%clk 0:03:58.6]} 20... Rb8 {[%clk 0:03:50.2]} 21.
b5 {[%clk 0:03:54.4]} 21... Nce7 {[%clk 0:03:46.6]} 22. Rxa7 {[%clk 0:03:52.3]}
22... b6 {[%clk 0:03:45.2]} 23. Ncd3 {[%clk 0:03:46.4]} 23... Nh4 {[%clk
0:03:41.7]} 24. Nf4 {[%clk 0:03:43]} 24... Be4 {[%clk 0:03:36.6]} 25. Rg3 {[%clk
0:03:41.4]} 25... Qh6 {[%clk 0:03:34.5]} 26. Bd3 {[%clk 0:03:33.5]} 26... Nef5
{[%clk 0:03:32.8]} 27. Rh3 {[%clk 0:03:32.5]} 27... Qg5 {[%clk 0:03:28.1]} 28.
Bxe4 {[%clk 0:03:31.1]} 28... dxe4 {[%clk 0:03:27.1]} 29. Qc2 {[%clk 0:03:15.4]}
29... O-O {[%clk 0:03:22.5]} 30. Qxe4 {[%clk 0:03:13.8]} 30... Rfc8 {[%clk
0:03:14.4]} 31. Qd3 {[%clk 0:03:11.8]} 31... h6 {[%clk 0:02:57.5]} 32. c4 {[%clk
0:03:08.3]} 32... Qg4 {[%clk 0:02:55.2]} 33. Kf2 {[%clk 0:03:02.3]} 33... g5
{[%clk 0:02:39.9]} 34. Ne2 {[%clk 0:03:00.5]} 34... Qh5 {[%clk 0:02:31.8]} 35.
g3 {[%clk 0:02:53.7]} 35... Kh8 {[%clk 0:02:21]} 36. gxh4 {[%clk 0:02:49.6]}
36... gxh4 {[%clk 0:02:20.4]} 37. Rf3 {[%clk 0:02:46.5]} 37... Rg8 {[%clk
0:02:16.6]} 38. Qe4 {[%clk 0:02:37.3]} 38... h3 {[%clk 0:02:08.4]} 39. Nf4
{[%clk 0:02:27.8]} 39... Qh4+ {[%clk 0:02:03.6]} 40. Ke2 {[%clk 0:02:27.3]}
40... Rg1 {[%clk 0:01:23.7]} 41. Ra1 {[%clk 0:02:13.7]} 41... Rbg8 {[%clk
0:01:17.9]} 42. Rxh3 {[%clk 0:02:09.9]} 42... Ra8 {[%clk 0:01:16.5]} 43. Rxh4
{[%clk 0:02:07.5]} 43... Nxh4 {[%clk 0:01:14.4]} 44. Rxa8+ {[%clk 0:02:04.7]}
1-0

[Event "Live Chess"]
[Site "Chess.com"]
[Date "2024.06.02"]
[Round "-"]
[White "bonantagulo"]
[Black "raimundklein"]
[Result "1-0"]
[WhiteElo "2225"]
[BlackElo "1548"]
[TimeControl "300"]
[EndTime "7:17:49 PDT"]
[Termination "bonantagulo won by resignation"]

1. d4 {[%clk 0:04:52.7]} 1... Nf6 {[%clk 0:04:58.1]} 2. c4 {[%clk 0:04:51.8]}
2... g6 {[%clk 0:04:57.4]} 3. Nc3 {[%clk 0:04:50.9]} 3... Bg7 {[%clk 0:04:56.6]}
4. Nf3 {[%clk 0:04:50.5]} 4... O-O {[%clk 0:04:55.3]} 5. e4 {[%clk 0:04:50.1]}
5... d6 {[%clk 0:04:54.6]} 6. Be2 {[%clk 0:04:49.5]} 6... e5 {[%clk 0:04:53.4]}
7. O-O {[%clk 0:04:49.1]} 7... Nc6 {[%clk 0:04:50.9]} 8. d5 {[%clk 0:04:48.1]}
8... Ne7 {[%clk 0:04:49.2]} 9. b4 {[%clk 0:04:47.7]} 9... Nh5 {[%clk 0:04:34]}
10. Re1 {[%clk 0:04:34.8]} 10... f5 {[%clk 0:04:32.2]} 11. Ng5 {[%clk
0:04:29.2]} 11... Nf6 {[%clk 0:04:28.3]} 12. Bf3 {[%clk 0:04:26.6]} 12... h6
{[%clk 0:04:26.4]} 13. Ne6 {[%clk 0:04:26]} 13... Bxe6 {[%clk 0:04:25.6]} 14.
dxe6 {[%clk 0:04:25.9]} 14... c6 {[%clk 0:04:24.7]} 15. g3 {[%clk 0:04:01]}
15... fxe4 {[%clk 0:03:50.1]} 16. Nxe4 {[%clk 0:03:58.7]} 16... Nxe4 {[%clk
0:03:48.8]} 17. Bxe4 {[%clk 0:03:58.6]} 17... Nf5 {[%clk 0:03:46]} 18. Bb2
{[%clk 0:03:49.9]} 18... Qe7 {[%clk 0:03:41]} 19. b5 {[%clk 0:03:12.1]} 19...
Rac8 {[%clk 0:03:38.2]} 20. Qa4 {[%clk 0:02:50.3]} 20... Qxe6 {[%clk 0:03:06.5]}
21. bxc6 {[%clk 0:02:48.3]} 21... bxc6 {[%clk 0:03:05.1]} 22. Bxc6 {[%clk
0:02:46.7]} 22... Kh7 {[%clk 0:03:00.6]} 23. Bd5 {[%clk 0:02:25.2]} 23... Qf6
{[%clk 0:02:44.3]} 24. Qxa7 {[%clk 0:02:18.9]} 24... Ne7 {[%clk 0:02:34.9]} 25.
Qe3 {[%clk 0:01:05.2]} 25... Nxd5 {[%clk 0:02:31.2]} 26. cxd5 {[%clk 0:01:05.1]}
26... Rc2 {[%clk 0:02:29.2]} 27. Re2 {[%clk 0:01:03.1]} 27... Rfc8 {[%clk
0:02:12.7]} 28. Rae1 {[%clk 0:00:55.7]} 28... Qf7 {[%clk 0:02:05.5]} 29. Qd3
{[%clk 0:00:50.8]} 29... R2c5 {[%clk 0:02:00]} 30. f4 {[%clk 0:00:46.9]} 30...
Rxd5 {[%clk 0:01:56.1]} 31. Qe4 {[%clk 0:00:43.3]} 31... Qa7+ {[%clk 0:01:45.6]}
32. Kh1 {[%clk 0:00:41.9]} 32... Qxa2 {[%clk 0:01:37]} 33. Bxe5 {[%clk
0:00:37.6]} 33... Rd2 {[%clk 0:01:35.3]} 34. Bxg7 {[%clk 0:00:34.4]} 34... Rxe2
{[%clk 0:01:19.1]} 35. Rxe2 {[%clk 0:00:34.3]} 35... Rc1+ {[%clk 0:01:16.8]} 36.
Kg2 {[%clk 0:00:33.2]} 36... Qa7 {[%clk 0:00:48.5]} 37. Bd4 {[%clk 0:00:31.9]}
1-0

[Event "Live Chess"]
[Site "Chess.com"]
[Date "2024.06.02"]
[Round "-"]
[White "elephantgerrald"]
[Black "r0ad_t0-gm"]
[Result "0-1"]
[WhiteElo "871"]
[BlackElo "2273"]
[TimeControl "300"]
[EndTime "7:17:53 PDT"]
[Termination "r0ad_t0-gm won on time"]

1. e4 {[%clk 0:04:53]} 1... Nf6 {[%clk 0:04:59.9]} 2. Nc3 {[%clk 0:04:50.9]}
2... d5 {[%clk 0:04:58.9]} 3. exd5 {[%clk 0:04:49]} 3... Nxd5 {[%clk 0:04:58.8]}
4. d4 {[%clk 0:04:46.9]} 4... Nxc3 {[%clk 0:04:57.2]} 5. bxc3 {[%clk 0:03:59.5]}
5... f5 {[%clk 0:04:56.8]} 6. Bc4 {[%clk 0:03:53.5]} 6... e6 {[%clk 0:04:55.1]}
7. Qh5+ {[%clk 0:03:51.5]} 7... g6 {[%clk 0:04:54.4]} 8. Qf3 {[%clk 0:03:47.1]}
8... Bg7 {[%clk 0:04:53.2]} 9. Ne2 {[%clk 0:03:39.3]} 9... O-O {[%clk
0:04:51.6]} 10. O-O {[%clk 0:03:17.1]} 10... Kh8 {[%clk 0:04:50.6]} 11. Nf4
{[%clk 0:01:44.7]} 11... e5 {[%clk 0:04:34]} 12. dxe5 {[%clk 0:01:36.5]} 12...
Bxe5 {[%clk 0:04:33.9]} 13. Qh3 {[%clk 0:01:33]} 13... Kg7 {[%clk 0:04:22]} 14.
Qg3 {[%clk 0:01:08.6]} 14... Bf6 {[%clk 0:04:14.8]} 15. Nh5+ {[%clk 0:00:59.9]}
15... Kh8 {[%clk 0:04:14.1]} 16. Nxf6 {[%clk 0:00:51.2]} 16... Qxf6 {[%clk
0:04:14]} 17. Bb2 {[%clk 0:00:41.2]} 17... Nc6 {[%clk 0:04:10.3]} 18. Bb3 {[%clk
0:00:39]} 18... f4 {[%clk 0:04:04.3]} 19. Qf3 {[%clk 0:00:32.1]} 19... Ne5
{[%clk 0:04:02.6]} 20. Qe4 {[%clk 0:00:26.1]} 20... f3 {[%clk 0:04:01.6]} 21.
Rab1 {[%clk 0:00:20.7]} 21... fxg2 {[%clk 0:03:56]} 22. Qxg2 {[%clk 0:00:18.4]}
22... Qf3 {[%clk 0:03:45]} 23. Qxf3 {[%clk 0:00:17]} 23... Nxf3+ {[%clk
0:03:44.9]} 24. Kg2 {[%clk 0:00:15.6]} 24... Nd2 {[%clk 0:03:44.8]} 25. c4+
{[%clk 0:00:13.8]} 25... Rf6 {[%clk 0:03:41.6]} 26. c5 {[%clk 0:00:12.1]} 26...
Kg7 {[%clk 0:03:39.6]} 27. f4 {[%clk 0:00:06]} 27... Nxb1 {[%clk 0:03:37.1]} 28.
Rf3 {[%clk 0:00:04.6]} 28... Nd2 {[%clk 0:03:35.7]} 29. Kg3 {[%clk 0:00:02.9]}
29... Nxf3 {[%clk 0:03:34.6]} 30. Bxf6+ {[%clk 0:00:02.1]} 30... Kxf6 {[%clk
0:03:33.7]} 31. Kxf3 {[%clk 0:00:00.5]} 31... Be6 {[%clk 0:03:33]} 32. h3 {[%clk
0:00:00.2]} 32... Bxb3 {[%clk 0:03:31.6]} 33. Ke4 {[%clk 0:00:00.1]} 33... Bxa2
{[%clk 0:03:30.3]} 0-1

[Event "Live Chess"]
[Site "Chess.com"]
[Date "2024.06.02"]
[Round "-"]
[White "Purple1szed"]
[Black "McFim"]
[Result "1-0"]
[WhiteElo "2006"]
[BlackElo "1777"]
[TimeControl "300"]
[EndTime "7:17:57 PDT"]
[Termination "Purple1szed won by resignation"]

1. e4 {[%clk 0:04:48.9]} 1... c6 {[%clk 0:04:58.8]} 2. d4 {[%clk 0:04:47.5]}
2... d5 {[%clk 0:04:58.7]} 3. e5 {[%clk 0:04:47]} 3... Bf5 {[%clk 0:04:57.4]} 4.
h4 {[%clk 0:04:46.5]} 4... h5 {[%clk 0:04:54.5]} 5. Bd3 {[%clk 0:04:45.9]} 5...
Bxd3 {[%clk 0:04:53.2]} 6. Qxd3 {[%clk 0:04:45.8]} 6... e6 {[%clk 0:04:52.8]} 7.
Bg5 {[%clk 0:04:44.6]} 7... Qc7 {[%clk 0:04:50.4]} 8. Nf3 {[%clk 0:04:42.6]}
8... a6 {[%clk 0:04:48.8]} 9. Nbd2 {[%clk 0:04:40.8]} 9... Ne7 {[%clk
0:04:47.6]} 10. c4 {[%clk 0:04:39]} 10... dxc4 {[%clk 0:04:41.7]} 11. Nxc4
{[%clk 0:04:38.9]} 11... Nf5 {[%clk 0:04:41]} 12. O-O {[%clk 0:04:36.7]} 12...
Nd7 {[%clk 0:04:38.7]} 13. Rfd1 {[%clk 0:04:32.4]} 13... b5 {[%clk 0:04:29.7]}
14. Ne3 {[%clk 0:04:27.9]} 14... Nxe3 {[%clk 0:04:25.5]} 15. Qxe3 {[%clk
0:04:27.8]} 15... Be7 {[%clk 0:04:20.8]} 16. Bxe7 {[%clk 0:04:24]} 16... Kxe7
{[%clk 0:04:19.4]} 17. Nd2 {[%clk 0:04:21.7]} 17... Nb6 {[%clk 0:04:15.5]} 18.
Ne4 {[%clk 0:04:20.5]} 18... Nc4 {[%clk 0:04:10.1]} 19. Qg5+ {[%clk 0:04:20.1]}
19... Kf8 {[%clk 0:04:08.9]} 20. Rd3 {[%clk 0:04:13.3]} 20... Qe7 {[%clk
0:04:06.4]} 21. Qf4 {[%clk 0:04:02.1]} 21... Nb6 {[%clk 0:04:02.8]} 22. Rf3
{[%clk 0:03:59.7]} 22... Nd5 {[%clk 0:03:58.9]} 23. Qg3 {[%clk 0:03:54.4]} 23...
Kg8 {[%clk 0:03:45.6]} 24. Ng5 {[%clk 0:03:53.4]} 24... Rf8 {[%clk 0:03:43.2]}
25. Rc1 {[%clk 0:03:50.2]} 25... Qd7 {[%clk 0:03:32.8]} 26. Rd3 {[%clk
0:03:31.6]} 26... Rh6 {[%clk 0:03:22.7]} 27. Rd2 {[%clk 0:03:28.4]} 27... Ne7
{[%clk 0:03:01.2]} 28. Qc3 {[%clk 0:03:16.7]} 28... Rc8 {[%clk 0:02:49.8]} 29.
Qf3 {[%clk 0:03:10]} 29... Nd5 {[%clk 0:02:45]} 30. a3 {[%clk 0:03:01.9]} 30...
a5 {[%clk 0:02:40.4]} 31. Rdc2 {[%clk 0:02:59.7]} 31... b4 {[%clk 0:02:29.7]}
32. Rxc6 {[%clk 0:02:35.2]} 32... Rxc6 {[%clk 0:02:25.2]} 33. Rxc6 {[%clk
0:02:35.1]} 33... f6 {[%clk 0:01:59]} 34. Rd6 {[%clk 0:02:23.7]} 34... Qc7
{[%clk 0:01:49.4]} 35. Nxe6 {[%clk 0:02:22.5]} 35... Qc1+ {[%clk 0:01:44.9]} 36.
Kh2 {[%clk 0:02:21.2]} 36... Ne7 {[%clk 0:01:38.7]} 37. Qa8+ {[%clk 0:01:38]}
37... Kf7 {[%clk 0:01:30.3]} 38. Qf8+ {[%clk 0:01:36]} 38... Kg6 {[%clk
0:01:28.7]} 39. Qxg7+ {[%clk 0:01:35.2]} 39... Kf5 {[%clk 0:01:25.9]} 40. Qxe7
{[%clk 0:01:05.9]} 40... Qf4+ {[%clk 0:01:22]} 41. Nxf4 {[%clk 0:01:04.5]} 1-0

[Event "Live Chess"]
[Site "Chess.com"]
[Date "2024.06.02"]
[Round "-"]
[White "beltmanjb"]
[Black "Grace6363"]
[Result "1-0"]
[WhiteElo "1686"]
[BlackElo "1137"]
[TimeControl "300"]
[EndTime "7:18:02 PDT"]
[Termination "beltmanjb won by resignation"]

1. d4 {[%clk 0:04:57.4]} 1... Nf6 {[%clk 0:04:31.1]} 2. c4 {[%clk 0:04:55.9]}
2... g6 {[%clk 0:04:30]} 3. g3 {[%clk 0:04:54.2]} 3... d5 {[%clk 0:04:29.3]} 4.
cxd5 {[%clk 0:04:52.5]} 4... Nxd5 {[%clk 0:04:28.6]} 5. e4 {[%clk 0:04:51.8]}
5... Nb6 {[%clk 0:04:25.7]} 6. Bg2 {[%clk 0:04:50.9]} 6... c6 {[%clk 0:04:24.5]}
7. Ne2 {[%clk 0:04:47.2]} 7... Bg7 {[%clk 0:04:23.9]} 8. O-O {[%clk 0:04:43.8]}
8... N8d7 {[%clk 0:04:21.9]} 9. Nbc3 {[%clk 0:04:41.8]} 9... c5 {[%clk
0:04:21.3]} 10. d5 {[%clk 0:04:40.2]} 10... Bxc3 {[%clk 0:04:17.4]} 11. Nxc3
{[%clk 0:04:38.4]} 11... Ne5 {[%clk 0:04:16.7]} 12. b3 {[%clk 0:04:22.8]} 12...
O-O {[%clk 0:04:10.8]} 13. Bb2 {[%clk 0:04:18.4]} 13... c4 {[%clk 0:04:08.5]}
14. Ne2 {[%clk 0:03:52.1]} 14... Nd3 {[%clk 0:04:01.3]} 15. Bd4 {[%clk 0:03:40]}
15... Bg4 {[%clk 0:03:53.8]} 16. bxc4 {[%clk 0:03:32.9]} 16... Bxe2 {[%clk
0:03:52.1]} 17. Qxe2 {[%clk 0:03:28.4]} 17... Nb4 {[%clk 0:03:50.4]} 18. Rab1
{[%clk 0:02:55.3]} 18... e5 {[%clk 0:03:42.2]} 19. Bc5 {[%clk 0:02:46.1]} 19...
Na6 {[%clk 0:03:34.6]} 20. Bxf8 {[%clk 0:02:43.8]} 20... Qxf8 {[%clk 0:03:32.5]}
21. Kh1 {[%clk 0:02:32.6]} 21... Nc5 {[%clk 0:03:31.6]} 22. f4 {[%clk
0:02:28.2]} 22... Rd8 {[%clk 0:03:28.5]} 23. fxe5 {[%clk 0:02:10.5]} 23... Qe7
{[%clk 0:03:25.1]} 24. Qf2 {[%clk 0:02:02.8]} 24... Rf8 {[%clk 0:03:18.7]} 25.
d6 {[%clk 0:01:53.3]} 25... Qxe5 {[%clk 0:03:12.6]} 26. Rb5 {[%clk 0:01:46.9]}
26... Qxd6 {[%clk 0:03:08.1]} 27. Qxc5 {[%clk 0:01:42.2]} 27... Qxc5 {[%clk
0:03:05.4]} 28. Rxc5 {[%clk 0:01:40.9]} 1-0

[Event "Live Chess"]
[Site "Chess.com"]
[Date "2024.06.02"]
[Round "-"]
[White "NottheBishopSacrifice"]
[Black "juniortay"]
[Result "1-0"]
[WhiteElo "2344"]
[BlackElo "2303"]
[TimeControl "300"]
[EndTime "7:18:09 PDT"]
[Termination "NottheBishopSacrifice won on time"]

1. d4 {[%clk 0:04:58.2]} 1... Nf6 {[%clk 0:04:56.6]} 2. c4 {[%clk 0:04:57.8]}
2... g6 {[%clk 0:04:55]} 3. Nf3 {[%clk 0:04:57.4]} 3... Bg7 {[%clk 0:04:54.6]}
4. g3 {[%clk 0:04:57]} 4... d6 {[%clk 0:04:54.5]} 5. Bg2 {[%clk 0:04:56.5]} 5...
O-O {[%clk 0:04:54]} 6. O-O {[%clk 0:04:56.1]} 6... c6 {[%clk 0:04:53.9]} 7. Nc3
{[%clk 0:04:55.3]} 7... Qa5 {[%clk 0:04:52.6]} 8. h3 {[%clk 0:04:53.9]} 8... Be6
{[%clk 0:04:51.2]} 9. Nd2 {[%clk 0:04:49.9]} 9... Qa6 {[%clk 0:04:49.8]} 10. b3
{[%clk 0:04:48.9]} 10... d5 {[%clk 0:04:47]} 11. c5 {[%clk 0:04:46.3]} 11... b6
{[%clk 0:04:44.1]} 12. b4 {[%clk 0:04:44.5]} 12... bxc5 {[%clk 0:04:42.1]} 13.
bxc5 {[%clk 0:04:43.6]} 13... Nbd7 {[%clk 0:04:32.5]} 14. e3 {[%clk 0:04:41.3]}
14... Ne8 {[%clk 0:04:27.1]} 15. Qc2 {[%clk 0:04:37.4]} 15... Nc7 {[%clk
0:04:21.7]} 16. Nb3 {[%clk 0:04:35.1]} 16... Rab8 {[%clk 0:04:16.2]} 17. Bd2
{[%clk 0:04:29.9]} 17... Bf5 {[%clk 0:04:13.4]} 18. Qc1 {[%clk 0:04:26.1]} 18...
Nb5 {[%clk 0:04:06.8]} 19. Nxb5 {[%clk 0:04:24.4]} 19... Qxb5 {[%clk 0:04:04.7]}
20. Re1 {[%clk 0:04:23.1]} 20... Ra8 {[%clk 0:03:49.4]} 21. Bf1 {[%clk
0:04:21.8]} 21... Qb7 {[%clk 0:03:46.9]} 22. Na5 {[%clk 0:04:20]} 22... Qc7
{[%clk 0:03:45.3]} 23. Qa3 {[%clk 0:04:18.9]} 23... Rab8 {[%clk 0:03:37.3]} 24.
Qa4 {[%clk 0:04:15.5]} 24... Rb2 {[%clk 0:02:46.7]} 25. Bc3 {[%clk 0:04:08.9]}
25... Rc2 {[%clk 0:02:44.8]} 26. Rac1 {[%clk 0:04:08.5]} 26... Rxc1 {[%clk
0:02:40.5]} 27. Rxc1 {[%clk 0:04:07.9]} 27... Nb8 {[%clk 0:02:38.9]} 28. Qb4
{[%clk 0:03:56.5]} 28... e5 {[%clk 0:02:33.8]} 29. Qb7 {[%clk 0:03:54.3]} 29...
Qxb7 {[%clk 0:02:07.3]} 30. Nxb7 {[%clk 0:03:54.2]} 30... exd4 {[%clk
0:02:05.6]} 31. Bxd4 {[%clk 0:03:51]} 31... Bxd4 {[%clk 0:02:03.7]} 32. exd4
{[%clk 0:03:50.9]} 32... Bc8 {[%clk 0:01:39.6]} 33. Nd6 {[%clk 0:03:50]} 33...
Ba6 {[%clk 0:01:37.3]} 34. Bxa6 {[%clk 0:03:45.7]} 34... Nxa6 {[%clk 0:01:37.2]}
35. Rb1 {[%clk 0:03:44.9]} 35... Re8 {[%clk 0:01:35]} 36. Rb7 {[%clk 0:03:42.5]}
36... Re2 {[%clk 0:01:26.9]} 37. Rxa7 {[%clk 0:03:37.7]} 37... Nb4 {[%clk
0:01:25.6]} 38. a4 {[%clk 0:03:30.1]} 38... Nd3 {[%clk 0:01:21.3]} 39. Rxf7
{[%clk 0:03:21]} 39... Ra2 {[%clk 0:01:16.7]} 40. Rf3 {[%clk 0:03:06]} 40... Nb4
{[%clk 0:01:07.4]} 41. Rb3 {[%clk 0:03:02.3]} 41... Nc2 {[%clk 0:01:03.1]} 42.
Rb8+ {[%clk 0:02:59.3]} 42... Kg7 {[%clk 0:01:00]} 43. Rb7+ {[%clk 0:02:54.7]}
43... Kg8 {[%clk 0:00:52.6]} 44. Ra7 {[%clk 0:02:52.1]} 44... Nxd4 {[%clk
0:00:50.5]} 45. a5 {[%clk 0:02:49.5]} 45... Nf5 {[%clk 0:00:42.3]} 46. Ra8+
{[%clk 0:02:38.8]} 46... Kg7 {[%clk 0:00:40.9]} 47. a6 {[%clk 0:02:35.9]} 47...
d4 {[%clk 0:00:37.8]} 48. Ne4 {[%clk 0:02:31.3]} 48... d3 {[%clk 0:00:32.9]} 49.
Rd8 {[%clk 0:02:27.6]} 49... Rxa6 {[%clk 0:00:28.2]} 50. Rxd3 {[%clk 0:02:26.8]}
50... Ra4 {[%clk 0:00:20.7]} 51. Rd7+ {[%clk 0:02:25]} 51... Kh6 {[%clk
0:00:19.2]} 52. Nf6 {[%clk 0:02:24.5]} 52... Nd4 {[%clk 0:00:15]} 53. Rxh7+
{[%clk 0:02:22.7]} 53... Kg5 {[%clk 0:00:14]} 54. Ne4+ {[%clk 0:02:21.7]} 54...
Kf5 {[%clk 0:00:12.9]} 55. Nd6+ {[%clk 0:02:20.6]} 55... Ke5 {[%clk 0:00:12]}
56. Rg7 {[%clk 0:02:18.1]} 56... Kd5 {[%clk 0:00:10.8]} 57. Rxg6 {[%clk
0:02:12.4]} 57... Kxc5 {[%clk 0:00:07.3]} 58. h4 {[%clk 0:02:10.4]} 58... Ra2
{[%clk 0:00:01.1]} 59. Ne4+ {[%clk 0:02:07.4]} 1-0